fUSD/lending_fUSD_20250112
["ID","MTS","AMOUNT","RATE_DAILY","PERIOD"]
[348697461,1736723455668,-500.0,0.00010819,2]
[348697462,1736723455678,-500.0,0.00010819,2]
[348697463,1736723455687,-500.0,0.00010819,2]
[348697464,1736723455696,-500.0,0.00010819,2]
[348697465,1736723455705,-500.0,0.00010819,2]
[348697466,1736723455714,-500.0,0.00010819,2]
[348697467,1736723455724,-500.0,0.00010819,2]
[348697468,1736723455733,-536.23273022,0.00010819,2]
[348697469,1736723455742,-500.0,0.00010819,2]
[348697470,1736723455751,-267.60524433,0.00010819,2]
[348697471,1736723455760,-1949.57,0.00010819,2]
[348697472,1736723455769,-762.22,0.00010819,2]
[348697473,1736723455778,-500.0,0.00010819,2]
[348697474,1736723455787,-500.0,0.0001082,2]
[348697475,1736723455797,-500.0,0.0001082,2]
[348697476,1736723455806,-500.0,0.0001082,2]
[348697477,1736723455816,-500.0,0.0001082,2]
[348697478,1736723455825,-703.96,0.0001082,2]
[348697479,1736723455835,-281.61569494,0.0001082,2]
[348697480,1736723455844,-500.0,0.0001082,2]
[348697481,1736723455855,-500.0,0.0001082,2]
[348697482,1736723455863,-1378.21,0.0001082,2]
[348697483,1736723455872,-500.0,0.0001082,2]
[348697484,1736723455881,-500.0,0.0001082,2]
[348697485,1736723455890,-500.0,0.0001082,2]
[348697486,1736723455899,-500.0,0.0001082,2]
[348697487,1736723455909,-877.97,0.0001082,2]
[348697488,1736723455920,-2136.75,0.0001082,2]
[348697489,1736723455929,-500.0,0.0001082,2]
[348697490,1736723455938,-500.0,0.0001082,2]
[348697491,1736723455947,-500.0,0.0001082,2]
[348697492,1736723455956,-500.0,0.0001082,2]
[348697493,1736723455966,-2251.52,0.0001082,2]
[348697494,1736723455975,-500.0,0.0001082,2]
[348697495,1736723455987,-525.87,0.0001082,2]
[348697496,1736723455996,-500.0,0.0001082,2]
[348697497,1736723456005,-500.0,0.0001082,2]
[348697498,1736723456014,-500.0,0.0001082,2]
[348697499,1736723456024,-923.65,0.0001082,2]
[348697500,1736723456033,-505.28,0.0001082,2]
[348697501,1736723456042,-1889.32,0.0001082,2]
[348697502,1736723456051,-500.0,0.0001082,2]
[348697503,1736723456060,-500.0,0.0001082,2]
[348697504,1736723456069,-500.0,0.0001082,2]
[348697505,1736723456077,-500.0,0.0001082,2]
[348697506,1736723456086,-500.0,0.0001082,2]
[348697507,1736723456095,-500.34,0.0001082,2]
[348697508,1736723456104,-500.0,0.0001082,2]
[348697509,1736723456113,-233.4867728,0.0001082,2]
[348697510,1736723456122,-500.0,0.0001082,2]
[348697511,1736723456131,-519.67,0.0001082,2]
[348697512,1736723456140,-500.0,0.0001082,2]
[348697513,1736723456149,-500.0,0.0001082,2]
[348697514,1736723456158,-592.28,0.0001082,2]
[348697515,1736723456167,-500.0,0.0001082,2]
[348697516,1736723456177,-898.78,0.0001082,2]
[348697517,1736723456186,-500.0,0.0001082,2]
[348697518,1736723456195,-500.0,0.0001082,2]
[348697519,1736723456204,-766.07,0.0001082,2]
[348697520,1736723456213,-561.49,0.0001082,2]
[348697521,1736723456222,-2194.42,0.0001082,2]
[348697522,1736723456231,-901.07,0.0001082,2]
[348697523,1736723456240,-952.21,0.0001082,2]
[348697524,1736723456249,-1139.11,0.0001082,2]
[348697525,1736723456260,-1451.1,0.0001082,2]
[348697526,1736723456270,-896.25,0.0001082,2]
[348697527,1736723456279,-500.0,0.00010821,2]
[348697528,1736723456289,-875.87,0.00010821,2]
[348697529,1736723456300,-681.14,0.00010821,2]
[348697530,1736723456309,-946.98,0.00010821,2]
[348697531,1736723456318,-775.55,0.00010821,2]
[348697532,1736723456327,-500.0,0.00010821,2]
[348697533,1736723456338,-854.16,0.00010821,2]
[348697534,1736723456348,-1050.58,0.00010821,2]
[348697535,1736723456357,-745.7,0.00010821,2]
[348697536,1736723456366,-500.0,0.00010821,2]
[348697537,1736723456376,-69231.99692347,0.000109,2]
[348697538,1736723456385,-587.0,0.00010917,2]
[348697539,1736723456394,-566.0,0.00010949,2]
[348697540,1736723456403,-150.0,0.00010949,2]
[348697541,1736723456412,-635.0,0.00010949,2]
[348697542,1736723456421,-1861.0,0.00010949,2]
[348697543,1736723456430,-2944.0,0.00010949,2]
[348697544,1736723456439,-817.0,0.00010949,2]
[348697545,1736723456447,-2640.358,0.00010951,2]
[348697546,1736723456456,-537.0,0.00010951,2]
[348697547,1736723456465,-150.0,0.00010951,2]
[348697548,1736723456475,-3896.0,0.00010951,2]
[348697549,1736723456484,-1174.0,0.00010951,2]
[348697550,1736723456493,-1104.0,0.00010951,2]
[348697551,1736723456502,-500.0,0.00010958,2]
[348697552,1736723456513,-297.74024801,0.00010958,2]
[348697553,1736723456522,-999.0,0.00010958,2]
[348697554,1736723456533,-4000.0,0.00010959,2]
[348697555,1736723456542,-150.0,0.00010959,2]
[348697556,1736723456552,-666.0,0.00010999,2]
[348697557,1736723456561,-1047723.36862493,0.00011,2]
[348697558,1736723456570,-200.0,0.00011,2]
[348697559,1736723456579,-550.0,0.00011,2]
[348697560,1736723456588,-368.66217887,0.0001105,2]
[348697561,1736723456599,-9427.20340862,0.0001105,2]
[348697562,1736723456609,-173.89661422,0.0001105,2]
[348697563,1736723456619,-214.45981686,0.0001105,2]
[348697564,1736723456628,-299.04579897,0.0001105,2]
[348697565,1736723456638,-3000.0,0.0001106,2]
[348697566,1736723456647,-153.62,0.00011083,2]
[348697567,1736723456657,-1301.35,0.00011091,2]
[348697568,1736723456666,-1287.05,0.00011091,2]
[348697569,1736723456675,-956.33,0.00011091,2]
[348697570,1736723456684,-565.65,0.00011091,2]
[348697571,1736723456694,-1471.68,0.00011091,2]
[348697572,1736723456703,-500.0,0.00011091,2]
[348697573,1736723456712,-597.96,0.00011091,2]
[348697574,1736723456722,-611.22,0.00011091,2]
[348697575,1736723456732,-900.07,0.00011091,2]
[348697576,1736723456742,-518.6,0.00011091,2]
[348697577,1736723456752,-500.0,0.00011091,2]
[348697578,1736723456762,-558.53,0.00011092,2]
[348697579,1736723456771,-500.0,0.00011092,2]
[348697580,1736723456782,-504.01,0.00011093,2]
[348697581,1736723456792,-500.0,0.00011093,2]
[348697582,1736723456802,-500.0,0.00011093,2]
[348697583,1736723456812,-500.0,0.00011093,2]
[348697584,1736723456822,-524.08700729,0.00011093,2]
[348697585,1736723456833,-500.0,0.00011093,2]
[348697586,1736723456843,-500.0,0.00011093,2]
[348697587,1736723456853,-500.0,0.00011093,2]
[348697588,1736723456864,-500.0,0.00011093,2]
[348697589,1736723456873,-500.0,0.00011093,2]
[348697590,1736723456883,-500.0,0.00011093,2]
[348697591,1736723456892,-500.0,0.00011093,2]
[348697592,1736723456902,-500.0,0.00011093,2]
[348697593,1736723456913,-500.0,0.00011093,2]
[348697594,1736723456923,-535.42,0.00011093,2]
[348697595,1736723456932,-500.0,0.00011093,2]
[348697596,1736723456943,-525.03,0.00011093,2]
[348697597,1736723456954,-500.0,0.00011093,2]
[348697598,1736723456965,-500.0,0.00011093,2]
[348697599,1736723456976,-500.0,0.00011093,2]
[348697600,1736723456987,-500.0,0.00011093,2]
[348697601,1736723456997,-500.0,0.00011093,2]
[348697602,1736723457007,-500.0,0.00011093,2]
[348697603,1736723457017,-500.0,0.00011093,2]
[348697604,1736723457026,-500.0,0.00011093,2]
[348697605,1736723457037,-500.0,0.00011093,2]
[348697606,1736723457047,-879.51,0.00011093,2]
[348697607,1736723457056,-500.0,0.00011093,2]
[348697608,1736723457066,-500.0,0.00011093,2]
[348697609,1736723457075,-500.0,0.00011093,2]
[348697610,1736723457084,-500.0,0.00011093,2]
[348697611,1736723457095,-511.24,0.00011093,2]
[348697612,1736723457105,-500.0,0.00011093,2]
[348697613,1736723457115,-500.0,0.00011093,2]
[348697614,1736723457125,-500.0,0.00011093,2]
[348697615,1736723457134,-500.0,0.00011093,2]
[348697616,1736723457143,-500.0,0.00011093,2]
[348697617,1736723457152,-500.0,0.00011093,2]
[348697618,1736723457162,-500.0,0.00011093,2]
[348697619,1736723457172,-500.0,0.00011093,2]
[348697620,1736723457181,-500.0,0.00011093,2]
[348697621,1736723457190,-500.0,0.00011093,2]
[348697622,1736723457200,-500.0,0.00011093,2]
[348697623,1736723457209,-500.0,0.00011093,2]
[348697624,1736723457218,-545.84,0.00011093,2]
[348697625,1736723457227,-1161.39,0.00011093,2]
[348697626,1736723457236,-500.0,0.00011093,2]
[348697627,1736723457246,-500.0,0.00011093,2]
[348697628,1736723457255,-934.8,0.00011093,2]
[348697629,1736723457269,-500.0,0.00011093,2]
[348697630,1736723457278,-2739.92,0.00011093,2]
[348697631,1736723457287,-500.0,0.00011093,2]
[348697632,1736723457300,-500.0,0.00011093,2]
[348697633,1736723457309,-1112.93,0.00011093,2]
[348697634,1736723457318,-500.0,0.00011093,2]
[348697635,1736723457327,-500.0,0.00011093,2]
[348697636,1736723457336,-1961.1,0.00011093,2]
[348697637,1736723457345,-500.0,0.00011093,2]
[348697638,1736723457354,-617.93,0.00011093,2]
[348697639,1736723457364,-539.12,0.00011093,2]
[348697640,1736723457373,-500.0,0.00011093,2]
[348697641,1736723457382,-516.61,0.00011093,2]
[348697642,1736723457391,-563.6,0.00011093,2]
[348697643,1736723457401,-541.77,0.00011093,2]
[348697644,1736723457410,-500.0,0.00011093,2]
[348697645,1736723457419,-1408.99,0.00011093,2]
[348697646,1736723457429,-881.31,0.00011093,2]
[348697647,1736723457438,-500.0,0.00011093,2]
[348697648,1736723457447,-500.0,0.00011093,2]
[348697649,1736723457456,-500.0,0.00011093,2]
[348697650,1736723457466,-500.0,0.00011093,2]
[348697651,1736723457475,-500.0,0.00011093,2]
[348697652,1736723457484,-1597.13,0.00011093,2]
[348697653,1736723457494,-500.0,0.00011093,2]
[348697654,1736723457503,-336.573048,0.00011093,2]
[348697655,1736723457512,-1968.91,0.00011093,2]
[348697656,1736723457522,-500.0,0.00011093,2]
[348697657,1736723457531,-500.0,0.00011093,2]
[348697658,1736723457540,-558.07,0.00011093,2]
[348697659,1736723457552,-1555.09,0.00011093,2]
[348697660,1736723457562,-500.0,0.00011093,2]
[348697661,1736723457571,-401.121639,0.00011093,2]
[348697662,1736723457580,-500.0,0.00011093,2]
[348697663,1736723457589,-500.0,0.00011093,2]
[348697664,1736723457598,-838.24,0.00011093,2]
[348697665,1736723457608,-500.0,0.00011093,2]
[348697666,1736723457617,-500.0,0.00011093,2]
[348697667,1736723457626,-500.0,0.00011093,2]
[348697668,1736723457635,-622.96,0.00011093,2]
[348697669,1736723457644,-500.0,0.00011093,2]
[348697670,1736723457655,-500.0,0.00011093,2]
[348697671,1736723457665,-500.0,0.00011093,2]
[348697672,1736723457674,-564.97,0.00011093,2]
[348697673,1736723457683,-500.0,0.00011093,2]
[348697674,1736723457692,-500.0,0.00011093,2]
[348697675,1736723457701,-500.0,0.00011093,2]
[348697676,1736723457710,-500.0,0.00011093,2]
[348697677,1736723457720,-500.0,0.00011093,2]
[348697678,1736723457729,-500.0,0.00011093,2]
[348697679,1736723457739,-500.0,0.00011093,2]
[348697680,1736723457748,-500.0,0.00011093,2]
[348697681,1736723457758,-1949.57,0.00011093,2]
[348697682,1736723457767,-762.22,0.00011093,2]
[348697683,1736723457777,-500.0,0.00011093,2]
[348697684,1736723457786,-666.0,0.00011093,2]
[348697685,1736723457798,-273.43977331,0.00011094,2]
[348697686,1736723457807,-500.0,0.00011094,2]
[348697687,1736723457816,-500.0,0.00011094,2]
[348697688,1736723457826,-500.0,0.00011094,2]
[348697689,1736723457836,-703.96,0.00011094,2]
[348697690,1736723457845,-500.0,0.00011094,2]
[348697691,1736723457855,-500.0,0.00011094,2]
[348697692,1736723457866,-1378.21,0.00011094,2]
[348697693,1736723457875,-500.0,0.00011094,2]
[348697694,1736723457886,-500.0,0.00011094,2]
[348697695,1736723457896,-500.0,0.00011094,2]
[348697696,1736723457906,-877.97,0.00011094,2]
[348697697,1736723457915,-2136.75,0.00011094,2]
[348697698,1736723457925,-500.0,0.00011094,2]
[348697699,1736723457935,-500.0,0.00011094,2]
[348697700,1736723457944,-500.0,0.00011094,2]
[348697701,1736723457954,-500.0,0.00011094,2]
[348697702,1736723457963,-2251.52,0.00011094,2]
[348697703,1736723457974,-500.0,0.00011094,2]
[348697704,1736723457984,-514.51064927,0.00011094,2]
[348697705,1736723457994,-500.0,0.00011094,2]
[348697706,1736723458004,-923.65,0.00011094,2]
[348697707,1736723458014,-505.28,0.00011094,2]
[348697708,1736723458024,-1889.32,0.00011094,2]
[348697709,1736723458033,-500.0,0.00011094,2]
[348697710,1736723458045,-500.0,0.00011094,2]
[348697711,1736723458055,-500.0,0.00011094,2]
[348697712,1736723458066,-500.0,0.00011094,2]
[348697713,1736723458078,-500.0,0.00011094,2]
[348697714,1736723458087,-500.34,0.00011094,2]
[348697715,1736723458097,-500.0,0.00011094,2]
[348697716,1736723458107,-500.0,0.00011094,2]
[348697717,1736723458116,-519.67,0.00011094,2]
[348697718,1736723458126,-500.0,0.00011094,2]
[348697719,1736723458136,-500.0,0.00011094,2]
[348697720,1736723458146,-592.28,0.00011094,2]
[348697721,1736723458156,-500.0,0.00011094,2]
[348697722,1736723458165,-500.0,0.00011094,2]
[348697723,1736723458176,-898.78,0.00011094,2]
[348697724,1736723458186,-500.0,0.00011094,2]
[348697725,1736723458196,-766.07,0.00011094,2]
[348697726,1736723458205,-561.49,0.00011094,2]
[348697727,1736723458215,-2194.42,0.00011094,2]
[348697728,1736723458224,-901.07,0.00011094,2]
[348697729,1736723458234,-952.21,0.00011094,2]
[348697730,1736723458244,-1139.11,0.00011094,2]
[348697731,1736723458254,-1451.1,0.00011094,2]
[348697732,1736723458267,-896.25,0.00011094,2]
[348697733,1736723458277,-500.0,0.00011095,2]
[348697734,1736723458286,-875.87,0.00011095,2]
[348697735,1736723458296,-681.14,0.00011095,2]
[348697736,1736723458306,-946.98,0.00011095,2]
[348697737,1736723458316,-775.55,0.00011095,2]
[348697738,1736723458326,-500.0,0.00011095,2]
[348697739,1736723458338,-854.16,0.00011095,2]
[348697740,1736723458348,-1050.58,0.00011095,2]
[348697741,1736723458359,-745.7,0.00011095,2]
[348697742,1736723458368,-377.83720368,0.00011095,2]
[348697743,1736723458379,-1268.0,0.00011165,2]
[348697744,1736723458388,-2016.0,0.00011165,2]
[348697745,1736723458398,-1000.0,0.00011176,2]
[348697746,1736723458408,-500.0,0.00011234,2]
[348697747,1736723458420,-1301.35,0.00011365,2]
[348697748,1736723458430,-1287.05,0.00011365,2]
[348697749,1736723458441,-956.33,0.00011365,2]
[348697750,1736723458450,-565.65,0.00011365,2]
[348697751,1736723458460,-1471.68,0.00011365,2]
[348697752,1736723458469,-500.0,0.00011365,2]
[348697753,1736723458478,-597.96,0.00011365,2]
[348697754,1736723458488,-611.22,0.00011365,2]
[348697755,1736723458497,-900.07,0.00011365,2]
[348697756,1736723458507,-518.6,0.00011365,2]
[348697757,1736723458517,-500.0,0.00011365,2]
[348697758,1736723458526,-558.53,0.00011366,2]
[348697759,1736723458535,-500.0,0.00011366,2]
[348697760,1736723458545,-504.01,0.00011367,2]
[348697761,1736723458555,-500.0,0.00011367,2]
[348697762,1736723458564,-500.0,0.00011367,2]
[348697763,1736723458573,-500.0,0.00011367,2]
[348697764,1736723458582,-500.0,0.00011367,2]
[348697765,1736723458592,-500.0,0.00011367,2]
[348697766,1736723458601,-500.0,0.00011367,2]
[348697767,1736723458611,-500.0,0.00011367,2]
[348697768,1736723458620,-500.0,0.00011367,2]
[348697769,1736723458629,-500.0,0.00011367,2]
[348697770,1736723458639,-500.0,0.00011367,2]
[348697771,1736723458648,-500.0,0.00011367,2]
[348697772,1736723458657,-500.0,0.00011367,2]
[348697773,1736723458667,-535.42,0.00011367,2]
[348697774,1736723458677,-500.0,0.00011367,2]
[348697775,1736723458687,-525.03,0.00011367,2]
[348697776,1736723458697,-500.0,0.00011367,2]
[348697777,1736723458706,-502.63,0.00011367,2]
[348697778,1736723458901,-500.0,0.00011367,2]
[348697779,1736723458911,-500.0,0.00011367,2]
[348697780,1736723458920,-500.0,0.00011367,2]
[348697781,1736723458929,-500.0,0.00011367,2]
[348697782,1736723458938,-500.0,0.00011367,2]
[348697783,1736723458947,-500.0,0.00011367,2]
[348697784,1736723458957,-500.0,0.00011367,2]
[348697785,1736723458966,-879.51,0.00011367,2]
[348697786,1736723458976,-500.0,0.00011367,2]
[348697787,1736723458985,-500.0,0.00011367,2]
[348697788,1736723458995,-500.0,0.00011367,2]
[348697789,1736723459004,-500.0,0.00011367,2]
[348697790,1736723459015,-511.24,0.00011367,2]
[348697791,1736723459024,-500.0,0.00011367,2]
[348697792,1736723459033,-562.29,0.00011367,2]
[348697793,1736723459043,-500.0,0.00011367,2]
[348697794,1736723459052,-500.0,0.00011367,2]
[348697795,1736723459061,-500.0,0.00011367,2]
[348697796,1736723459070,-500.0,0.00011367,2]
[348697797,1736723459079,-500.0,0.00011367,2]
[348697798,1736723459088,-500.0,0.00011367,2]
[348697799,1736723459097,-500.0,0.00011367,2]
[348697800,1736723459106,-500.0,0.00011367,2]
[348697801,1736723459115,-500.0,0.00011367,2]
[348697802,1736723459124,-500.0,0.00011367,2]
[348697803,1736723459133,-545.84,0.00011367,2]
[348697804,1736723459143,-1161.39,0.00011367,2]
[348697805,1736723459152,-500.0,0.00011367,2]
[348697806,1736723459163,-500.0,0.00011367,2]
[348697807,1736723459173,-934.8,0.00011367,2]
[348697808,1736723459182,-500.0,0.00011367,2]
[348697809,1736723459192,-2739.92,0.00011367,2]
[348697810,1736723459201,-500.0,0.00011367,2]
[348697811,1736723459210,-500.0,0.00011367,2]
[348697812,1736723459220,-1112.93,0.00011367,2]
[348697813,1736723459229,-500.0,0.00011367,2]
[348697814,1736723459238,-500.0,0.00011367,2]
[348697815,1736723459247,-1961.1,0.00011367,2]
[348697816,1736723459259,-546.04,0.00011367,2]
[348697817,1736723459272,-617.93,0.00011367,2]
[348697818,1736723459281,-539.12,0.00011367,2]
[348697819,1736723459290,-500.0,0.00011367,2]
[348697820,1736723459299,-516.61,0.00011367,2]
[348697821,1736723459309,-563.6,0.00011367,2]
[348697822,1736723459318,-541.77,0.00011367,2]
[348697823,1736723459327,-500.0,0.00011367,2]
[348697824,1736723459336,-1408.99,0.00011367,2]
[348697825,1736723459345,-881.31,0.00011367,2]
[348697826,1736723459354,-500.0,0.00011367,2]
[348697827,1736723459363,-500.0,0.00011367,2]
[348697828,1736723459373,-500.0,0.00011367,2]
[348697829,1736723459384,-500.0,0.00011367,2]
[348697830,1736723459395,-500.0,0.00011367,2]
[348697831,1736723459404,-1597.13,0.00011367,2]
[348697832,1736723459413,-500.0,0.00011367,2]
[348697833,1736723459422,-336.573048,0.00011367,2]
[348697834,1736723459433,-1968.91,0.00011367,2]
[348697835,1736723459444,-500.0,0.00011367,2]
[348697836,1736723459454,-500.0,0.00011367,2]
[348697837,1736723459465,-558.07,0.00011367,2]
[348697838,1736723459475,-1555.09,0.00011367,2]
[348697839,1736723459486,-500.0,0.00011367,2]
[348697840,1736723459497,-401.121639,0.00011367,2]
[348697841,1736723459507,-500.0,0.00011367,2]
[348697842,1736723459518,-838.24,0.00011367,2]
[348697843,1736723459530,-500.0,0.00011367,2]
[348697844,1736723459541,-500.0,0.00011367,2]
[348697845,1736723459551,-500.0,0.00011367,2]
[348697846,1736723459561,-622.96,0.00011367,2]
[348697847,1736723459572,-500.0,0.00011367,2]
[348697848,1736723459582,-500.0,0.00011367,2]
[348697849,1736723459593,-500.0,0.00011367,2]
[348697850,1736723459603,-564.97,0.00011367,2]
[348697851,1736723459612,-500.0,0.00011367,2]
[348697852,1736723459621,-500.0,0.00011367,2]
[348697853,1736723459630,-500.0,0.00011367,2]
[348697854,1736723459639,-500.0,0.00011367,2]
[348697855,1736723459648,-500.0,0.00011367,2]
[348697856,1736723459657,-500.0,0.00011367,2]
[348697857,1736723459667,-540.76033735,0.00011367,2]
[348697858,1736723459676,-500.0,0.00011367,2]
[348697859,1736723459685,-1949.57,0.00011367,2]
[348697860,1736723459694,-762.22,0.00011367,2]
[348697861,1736723459705,-558.58869963,0.00011367,2]
[348697862,1736723459715,-666.0,0.00011367,2]
[348697863,1736723459724,-500.0,0.00011368,2]
[348697864,1736723459734,-500.0,0.00011368,2]
[348697865,1736723459743,-500.0,0.00011368,2]
[348697866,1736723459752,-703.96,0.00011368,2]
[348697867,1736723459762,-500.0,0.00011368,2]
[348697868,1736723459771,-500.0,0.00011368,2]
[348697869,1736723459780,-1378.21,0.00011368,2]
[348697870,1736723459790,-500.0,0.00011368,2]
[348697871,1736723459799,-500.0,0.00011368,2]
[348697872,1736723459809,-500.0,0.00011368,2]
[348697873,1736723459818,-2136.75,0.00011368,2]
[348697874,1736723459827,-500.0,0.00011368,2]
[348697875,1736723459837,-473.18580128,0.00011368,2]
[348697876,1736723459846,-500.0,0.00011368,2]
[348697877,1736723459855,-500.0,0.00011368,2]
[348697878,1736723459865,-2251.52,0.00011368,2]
[348697879,1736723459874,-500.0,0.00011368,2]
[348697880,1736723459883,-500.0,0.00011368,2]
[348697881,1736723459892,-923.65,0.00011368,2]
[348697882,1736723459902,-505.28,0.00011368,2]
[348697883,1736723459911,-1889.32,0.00011368,2]
[348697884,1736723459921,-500.0,0.00011368,2]
[348697885,1736723459930,-500.0,0.00011368,2]
[348697886,1736723459939,-500.0,0.00011368,2]
[348697887,1736723459948,-500.0,0.00011368,2]
[348697888,1736723459958,-401.85510887,0.00011368,2]
[348697889,1736723459967,-500.34,0.00011368,2]
[348697890,1736723459976,-500.0,0.00011368,2]
[348697891,1736723459985,-500.0,0.00011368,2]
[348697892,1736723459995,-519.67,0.00011368,2]
[348697893,1736723460004,-500.0,0.00011368,2]
[348697894,1736723460013,-500.0,0.00011368,2]
[348697895,1736723460023,-592.28,0.00011368,2]
[348697896,1736723460033,-500.0,0.00011368,2]
[348697897,1736723460043,-500.0,0.00011368,2]
[348697898,1736723460055,-898.78,0.00011368,2]
[348697899,1736723460064,-417.67947893,0.00011368,2]
[348697900,1736723460073,-766.07,0.00011368,2]
[348697901,1736723460082,-561.49,0.00011368,2]
[348697902,1736723460092,-2194.42,0.00011368,2]
[348697903,1736723460101,-901.07,0.00011368,2]
[348697904,1736723460111,-952.21,0.00011368,2]
[348697905,1736723460120,-1139.11,0.00011368,2]
[348697906,1736723460130,-1451.1,0.00011368,2]
[348697907,1736723460139,-896.25,0.00011368,2]
[348697908,1736723460148,-500.0,0.00011369,2]
[348697909,1736723460158,-875.87,0.00011369,2]
[348697910,1736723460167,-681.14,0.00011369,2]
[348697911,1736723460176,-946.98,0.00011369,2]
[348697912,1736723460186,-775.55,0.00011369,2]
[348697913,1736723460195,-500.0,0.00011369,2]
[348697914,1736723460204,-854.16,0.00011369,2]
[348697915,1736723460214,-1050.58,0.00011369,2]
[348697916,1736723460222,-745.7,0.00011369,2]
[348697917,1736723460232,-3000.0,0.0001138,2]
[348697918,1736723460241,-452.75,0.00011408,2]
[348697919,1736723460250,-368.66217887,0.00011433,2]
[348697920,1736723460261,-150.0,0.00011479,2]
[348697921,1736723460271,-150.0,0.00011479,2]
[348697922,1736723460280,-874.38,0.00011479,2]
[348697923,1736723460290,-150.0,0.00011479,2]
[348697924,1736723460299,-1958.4,0.00011479,2]
[348697925,1736723460309,-150.0,0.00011479,2]
[348697926,1736723460318,-150.0,0.00011479,2]
[348697927,1736723460327,-150.0,0.00011479,2]
[348697928,1736723460336,-150.0,0.00011479,2]
[348697929,1736723460346,-150.0,0.00011479,2]
[348697930,1736723460355,-150.0,0.00011479,2]
[348697931,1736723460364,-2751.0,0.00011507,2]
[348697932,1736723460373,-155.408,0.0001156,2]
[348697933,1736723460382,-1301.35,0.00011639,2]
[348697934,1736723460391,-1287.05,0.00011639,2]
[348697935,1736723460401,-956.33,0.00011639,2]
[348697936,1736723460410,-565.65,0.00011639,2]
[348697937,1736723460419,-1471.68,0.00011639,2]
[348697938,1736723460428,-500.0,0.00011639,2]
[348697939,1736723460438,-597.96,0.00011639,2]
[348697940,1736723460447,-611.22,0.00011639,2]
[348697941,1736723460456,-900.07,0.00011639,2]
[348697942,1736723460466,-518.6,0.00011639,2]
[348697943,1736723460475,-500.0,0.00011639,2]
[348697944,1736723460484,-1500.0,0.00011639,2]
[348697945,1736723460493,-558.53,0.0001164,2]
[348697946,1736723460503,-500.0,0.0001164,2]
[348697947,1736723460512,-666.0,0.00011641,2]
[348697948,1736723460522,-504.01,0.00011641,2]
[348697949,1736723460531,-500.0,0.00011641,2]
[348697950,1736723460540,-500.0,0.00011641,2]
[348697951,1736723460551,-500.0,0.00011641,2]
[348697952,1736723460560,-500.0,0.00011641,2]
[348697953,1736723460569,-500.0,0.00011641,2]
[348697954,1736723460578,-500.0,0.00011641,2]
[348697955,1736723460587,-500.0,0.00011641,2]
[348697956,1736723460596,-500.0,0.00011641,2]
[348697957,1736723460605,-500.0,0.00011641,2]
[348697958,1736723460614,-500.0,0.00011641,2]
[348697959,1736723460623,-500.0,0.00011641,2]
[348697960,1736723460632,-500.0,0.00011641,2]